{"text_format":"3","workbook":"xlsx","n_sheets":4,"sheets":["Sažetak","Ukupni iznosi","Prihod","Rashodi"],"not_rendered":{"defined_names":13},"read":"whole","date_system":"1900"}

{"sheet":"Sažetak","index":0,"n_rows":6,"n_cols":3,"rows_kept":6,"merged":[[0,1,0,2],[1,1,1,2]]}
[null,"OBITELJSKI MJESEČNI PRORAČUN"]
[null,"SAŽETAK"]
[null,"Saldo","Iznos"]
[null,"Predviđeni saldo (predviđeni prihod minus troškovi)",{"$f":"ProjiciraniPrihodi-ProjiciraniTroškovi","v":{"v":1114,"d":"1,114 kn"}}]
[null,"Stvarni saldo (stvarni prihod minus troškovi)",{"$f":"StvarniPrihodi-StvarniTroškovi","v":{"v":997,"d":"997 kn"}}]
[null,"Razlika (stvarno minus projicirano)",{"$f":"StvarnoStanje-ProjiciranoStanje","v":{"v":-117,"d":"-117 kn"}}]

{"sheet":"Ukupni iznosi","index":1,"n_rows":6,"n_cols":3,"rows_kept":6,"merged":[[0,1,0,2],[1,1,1,2]]}
[null,{"$f":"Naslov_radne_knjige","v":"OBITELJSKI MJESEČNI PRORAČUN"}]
[null,"Ukupni iznosi"]
[null,"Ukupni iznosi","Iznos"]
[null,"Ukupni predviđeni trošak",{"$f":"ProjiciraniTroškovi","v":{"v":4486,"d":"4,486 kn"}}]
[null,"Ukupni stvarni trošak",{"$f":"StvarniTroškovi","v":{"v":4603,"d":"4,603 kn"}}]
[null,"Ukupna razlika",{"$f":"C4-C5","v":{"v":-117,"d":"-117 kn"}}]

{"sheet":"Prihod","index":2,"n_rows":7,"n_cols":5,"rows_kept":7,"merged":[[0,1,0,4],[1,1,1,4]]}
[null,{"$f":"Naslov_radne_knjige","v":"OBITELJSKI MJESEČNI PRORAČUN"}]
[null,"PRIHOD"]
[null,"Predviđeni prihod","Projicirano","Stvarno","Razlika"]
[null,"Prihod 1",{"v":4000,"d":"4,000.00 kn"},{"v":4000,"d":"4,000.00 kn"},{"$f":"TablicaPrihodi[[#This Row],[Projicirano]]-TablicaPrihodi[[#This Row],[Stvarno]]","v":{"v":0,"d":"0.00 kn"}}]
[null,"Prihod 2",{"v":1300,"d":"1,300.00 kn"},{"v":1300,"d":"1,300.00 kn"},{"$f":"TablicaPrihodi[[#This Row],[Projicirano]]-TablicaPrihodi[[#This Row],[Stvarno]]","v":{"v":0,"d":"0.00 kn"}}]
[null,"Dodatni prihodi",{"v":300,"d":"300.00 kn"},{"v":300,"d":"300.00 kn"},{"$f":"TablicaPrihodi[[#This Row],[Projicirano]]-TablicaPrihodi[[#This Row],[Stvarno]]","v":{"v":0,"d":"0.00 kn"}}]
[null,"Ukupni mjesečni prihodi",{"$f":"SUBTOTAL(109,TablicaPrihodi[Projicirano])","v":{"v":5600,"d":"5,600.00 kn"}},{"$f":"SUBTOTAL(109,TablicaPrihodi[Stvarno])","v":{"v":5600,"d":"5,600.00 kn"}},{"$f":"SUBTOTAL(109,TablicaPrihodi[Razlika])","v":{"v":0,"d":"0.00 kn"}}]

{"sheet":"Rashodi","index":3,"n_rows":80,"n_cols":6,"rows_kept":80,"merged":[[0,1,0,5],[1,1,1,5],[2,1,2,5]]}
[null,{"$f":"Naslov_radne_knjige","v":"OBITELJSKI MJESEČNI PRORAČUN"}]
[null,"RASHODI"]
[]
[null,"Kategorija","Potkategorija","Projicirano","Stvarno","Razlika"]
[null,"Stanovanje","Hipoteka ili najamnina",{"v":1000,"d":"1,000.00 kn"},{"v":1000,"d":"1,000.00 kn"},{"$f":"TablicaPotrošnja[[#This Row],[Projicirano]]-TablicaPotrošnja[[#This Row],[Stvarno]]","v":{"v":0,"d":"0.00 kn"}}]
[null,"Stanovanje","Druga hipoteka ili najamnina",{"v":0,"d":"0.00 kn"},{"v":0,"d":"0.00 kn"},{"$f":"TablicaPotrošnja[[#This Row],[Projicirano]]-TablicaPotrošnja[[#This Row],[Stvarno]]","v":{"v":0,"d":"0.00 kn"}}]
[null,"Stanovanje","Telefon",{"v":54,"d":"54.00 kn"},{"v":100,"d":"100.00 kn"},{"$f":"TablicaPotrošnja[[#This Row],[Projicirano]]-TablicaPotrošnja[[#This Row],[Stvarno]]","v":{"v":-46,"d":"-46.00 kn"}}]
[null,"Stanovanje","Struja",{"v":44,"d":"44.00 kn"},{"v":56,"d":"56.00 kn"},{"$f":"TablicaPotrošnja[[#This Row],[Projicirano]]-TablicaPotrošnja[[#This Row],[Stvarno]]","v":{"v":-12,"d":"-12.00 kn"}}]
[null,"Stanovanje","Plin",{"v":22,"d":"22.00 kn"},{"v":28,"d":"28.00 kn"},{"$f":"TablicaPotrošnja[[#This Row],[Projicirano]]-TablicaPotrošnja[[#This Row],[Stvarno]]","v":{"v":-6,"d":"-6.00 kn"}}]
[null,"Stanovanje","Voda i komunalna naknada",{"v":8,"d":"8.00 kn"},{"v":8,"d":"8.00 kn"},{"$f":"TablicaPotrošnja[[#This Row],[Projicirano]]-TablicaPotrošnja[[#This Row],[Stvarno]]","v":{"v":0,"d":"0.00 kn"}}]
[null,"Stanovanje","Kabelska TV",{"v":34,"d":"34.00 kn"},{"v":34,"d":"34.00 kn"},{"$f":"TablicaPotrošnja[[#This Row],[Projicirano]]-TablicaPotrošnja[[#This Row],[Stvarno]]","v":{"v":0,"d":"0.00 kn"}}]
[null,"Stanovanje","Odvoz smeća",{"v":10,"d":"10.00 kn"},{"v":10,"d":"10.00 kn"},{"$f":"TablicaPotrošnja[[#This Row],[Projicirano]]-TablicaPotrošnja[[#This Row],[Stvarno]]","v":{"v":0,"d":"0.00 kn"}}]
[null,"Stanovanje","Održavanja i popravci",{"v":23,"d":"23.00 kn"},{"v":0,"d":"0.00 kn"},{"$f":"TablicaPotrošnja[[#This Row],[Projicirano]]-TablicaPotrošnja[[#This Row],[Stvarno]]","v":{"v":23,"d":"23.00 kn"}}]
[null,"Stanovanje","Potrepštine",{"v":0,"d":"0.00 kn"},{"v":0,"d":"0.00 kn"},{"$f":"TablicaPotrošnja[[#This Row],[Projicirano]]-TablicaPotrošnja[[#This Row],[Stvarno]]","v":{"v":0,"d":"0.00 kn"}}]
[null,"Stanovanje","Ostalo",{"v":0,"d":"0.00 kn"},{"v":0,"d":"0.00 kn"},{"$f":"TablicaPotrošnja[[#This Row],[Projicirano]]-TablicaPotrošnja[[#This Row],[Stvarno]]","v":{"v":0,"d":"0.00 kn"}}]
[null,"Prijevoz","Rata za vozilo 1",{"v":16,"d":"16.00 kn"},{"v":66,"d":"66.00 kn"},{"$f":"TablicaPotrošnja[[#This Row],[Projicirano]]-TablicaPotrošnja[[#This Row],[Stvarno]]","v":{"v":-50,"d":"-50.00 kn"}}]
[null,"Prijevoz","Rata za vozilo 2",{"v":35,"d":"35.00 kn"},{"v":42,"d":"42.00 kn"},{"$f":"TablicaPotrošnja[[#This Row],[Projicirano]]-TablicaPotrošnja[[#This Row],[Stvarno]]","v":{"v":-7,"d":"-7.00 kn"}}]
[null,"Prijevoz","Autobus/taksi",{"v":1,"d":"1.00 kn"},{"v":62,"d":"62.00 kn"},{"$f":"TablicaPotrošnja[[#This Row],[Projicirano]]-TablicaPotrošnja[[#This Row],[Stvarno]]","v":{"v":-61,"d":"-61.00 kn"}}]
[null,"Prijevoz","Osiguranje",{"v":91,"d":"91.00 kn"},{"v":27,"d":"27.00 kn"},{"$f":"TablicaPotrošnja[[#This Row],[Projicirano]]-TablicaPotrošnja[[#This Row],[Stvarno]]","v":{"v":64,"d":"64.00 kn"}}]
[null,"Prijevoz","Registracija",{"v":80,"d":"80.00 kn"},{"v":89,"d":"89.00 kn"},{"$f":"TablicaPotrošnja[[#This Row],[Projicirano]]-TablicaPotrošnja[[#This Row],[Stvarno]]","v":{"v":-9,"d":"-9.00 kn"}}]
[null,"Prijevoz","Gorivo",{"v":18,"d":"18.00 kn"},{"v":93,"d":"93.00 kn"},{"$f":"TablicaPotrošnja[[#This Row],[Projicirano]]-TablicaPotrošnja[[#This Row],[Stvarno]]","v":{"v":-75,"d":"-75.00 kn"}}]
[null,"Prijevoz","Održavanje",{"v":34,"d":"34.00 kn"},{"v":37,"d":"37.00 kn"},{"$f":"TablicaPotrošnja[[#This Row],[Projicirano]]-TablicaPotrošnja[[#This Row],[Stvarno]]","v":{"v":-3,"d":"-3.00 kn"}}]
[null,"Prijevoz","Ostalo",{"v":83,"d":"83.00 kn"},{"v":61,"d":"61.00 kn"},{"$f":"TablicaPotrošnja[[#This Row],[Projicirano]]-TablicaPotrošnja[[#This Row],[Stvarno]]","v":{"v":22,"d":"22.00 kn"}}]
[null,"Osiguranje","Osiguranje doma",{"v":48,"d":"48.00 kn"},{"v":63,"d":"63.00 kn"},{"$f":"TablicaPotrošnja[[#This Row],[Projicirano]]-TablicaPotrošnja[[#This Row],[Stvarno]]","v":{"v":-15,"d":"-15.00 kn"}}]
[null,"Osiguranje","Zdravstveno osiguranje",{"v":21,"d":"21.00 kn"},{"v":44,"d":"44.00 kn"},{"$f":"TablicaPotrošnja[[#This Row],[Projicirano]]-TablicaPotrošnja[[#This Row],[Stvarno]]","v":{"v":-23,"d":"-23.00 kn"}}]
[null,"Osiguranje","Životno osiguranje",{"v":35,"d":"35.00 kn"},{"v":65,"d":"65.00 kn"},{"$f":"TablicaPotrošnja[[#This Row],[Projicirano]]-TablicaPotrošnja[[#This Row],[Stvarno]]","v":{"v":-30,"d":"-30.00 kn"}}]
[null,"Osiguranje","Ostalo",{"v":14,"d":"14.00 kn"},{"v":75,"d":"75.00 kn"},{"$f":"TablicaPotrošnja[[#This Row],[Projicirano]]-TablicaPotrošnja[[#This Row],[Stvarno]]","v":{"v":-61,"d":"-61.00 kn"}}]
[null,"Hrana","Namirnice",{"v":79,"d":"79.00 kn"},{"v":0,"d":"0.00 kn"},{"$f":"TablicaPotrošnja[[#This Row],[Projicirano]]-TablicaPotrošnja[[#This Row],[Stvarno]]","v":{"v":79,"d":"79.00 kn"}}]
[null,"Hrana","Restorani",{"v":56,"d":"56.00 kn"},{"v":50,"d":"50.00 kn"},{"$f":"TablicaPotrošnja[[#This Row],[Projicirano]]-TablicaPotrošnja[[#This Row],[Stvarno]]","v":{"v":6,"d":"6.00 kn"}}]
[null,"Hrana","Ostalo",{"v":96,"d":"96.00 kn"},{"v":23,"d":"23.00 kn"},{"$f":"TablicaPotrošnja[[#This Row],[Projicirano]]-TablicaPotrošnja[[#This Row],[Stvarno]]","v":{"v":73,"d":"73.00 kn"}}]
[null,"Djeca","Zdravstveni troškovi",{"v":90,"d":"90.00 kn"},{"v":90,"d":"90.00 kn"},{"$f":"TablicaPotrošnja[[#This Row],[Projicirano]]-TablicaPotrošnja[[#This Row],[Stvarno]]","v":{"v":0,"d":"0.00 kn"}}]
[null,"Djeca","Odjeća",{"v":33,"d":"33.00 kn"},{"v":30,"d":"30.00 kn"},{"$f":"TablicaPotrošnja[[#This Row],[Projicirano]]-TablicaPotrošnja[[#This Row],[Stvarno]]","v":{"v":3,"d":"3.00 kn"}}]
[null,"Djeca","Školarina",{"v":86,"d":"86.00 kn"},{"v":64,"d":"64.00 kn"},{"$f":"TablicaPotrošnja[[#This Row],[Projicirano]]-TablicaPotrošnja[[#This Row],[Stvarno]]","v":{"v":22,"d":"22.00 kn"}}]
[null,"Djeca","Školski pribor",{"v":76,"d":"76.00 kn"},{"v":2,"d":"2.00 kn"},{"$f":"TablicaPotrošnja[[#This Row],[Projicirano]]-TablicaPotrošnja[[#This Row],[Stvarno]]","v":{"v":74,"d":"74.00 kn"}}]
[null,"Djeca","Članarine ili naknade",{"v":60,"d":"60.00 kn"},{"v":90,"d":"90.00 kn"},{"$f":"TablicaPotrošnja[[#This Row],[Projicirano]]-TablicaPotrošnja[[#This Row],[Stvarno]]","v":{"v":-30,"d":"-30.00 kn"}}]
[null,"Djeca","Novac za užinu",{"v":37,"d":"37.00 kn"},{"v":60,"d":"60.00 kn"},{"$f":"TablicaPotrošnja[[#This Row],[Projicirano]]-TablicaPotrošnja[[#This Row],[Stvarno]]","v":{"v":-23,"d":"-23.00 kn"}}]
[null,"Djeca","Vrtić",{"v":22,"d":"22.00 kn"},{"v":70,"d":"70.00 kn"},{"$f":"TablicaPotrošnja[[#This Row],[Projicirano]]-TablicaPotrošnja[[#This Row],[Stvarno]]","v":{"v":-48,"d":"-48.00 kn"}}]
[null,"Djeca","Igračke/igre",{"v":80,"d":"80.00 kn"},{"v":21,"d":"21.00 kn"},{"$f":"TablicaPotrošnja[[#This Row],[Projicirano]]-TablicaPotrošnja[[#This Row],[Stvarno]]","v":{"v":59,"d":"59.00 kn"}}]
[null,"Djeca","Ostalo",{"v":65,"d":"65.00 kn"},{"v":20,"d":"20.00 kn"},{"$f":"TablicaPotrošnja[[#This Row],[Projicirano]]-TablicaPotrošnja[[#This Row],[Stvarno]]","v":{"v":45,"d":"45.00 kn"}}]
[null,"Kućni ljubimci","Hrana",{"v":37,"d":"37.00 kn"},{"v":34,"d":"34.00 kn"},{"$f":"TablicaPotrošnja[[#This Row],[Projicirano]]-TablicaPotrošnja[[#This Row],[Stvarno]]","v":{"v":3,"d":"3.00 kn"}}]
[null,"Kućni ljubimci","Liječnički troškovi",{"v":74,"d":"74.00 kn"},{"v":86,"d":"86.00 kn"},{"$f":"TablicaPotrošnja[[#This Row],[Projicirano]]-TablicaPotrošnja[[#This Row],[Stvarno]]","v":{"v":-12,"d":"-12.00 kn"}}]
[null,"Kućni ljubimci","Njega ljubimaca",{"v":80,"d":"80.00 kn"},{"v":92,"d":"92.00 kn"},{"$f":"TablicaPotrošnja[[#This Row],[Projicirano]]-TablicaPotrošnja[[#This Row],[Stvarno]]","v":{"v":-12,"d":"-12.00 kn"}}]
[null,"Kućni ljubimci","Igračke",{"v":61,"d":"61.00 kn"},{"v":22,"d":"22.00 kn"},{"$f":"TablicaPotrošnja[[#This Row],[Projicirano]]-TablicaPotrošnja[[#This Row],[Stvarno]]","v":{"v":39,"d":"39.00 kn"}}]
[null,"Kućni ljubimci","Ostalo",{"v":83,"d":"83.00 kn"},{"v":51,"d":"51.00 kn"},{"$f":"TablicaPotrošnja[[#This Row],[Projicirano]]-TablicaPotrošnja[[#This Row],[Stvarno]]","v":{"v":32,"d":"32.00 kn"}}]
[null,"Osobna njega","Liječnički troškovi",{"v":28,"d":"28.00 kn"},{"v":10,"d":"10.00 kn"},{"$f":"TablicaPotrošnja[[#This Row],[Projicirano]]-TablicaPotrošnja[[#This Row],[Stvarno]]","v":{"v":18,"d":"18.00 kn"}}]
[null,"Osobna njega","Frizura/manikura",{"v":25,"d":"25.00 kn"},{"v":81,"d":"81.00 kn"},{"$f":"TablicaPotrošnja[[#This Row],[Projicirano]]-TablicaPotrošnja[[#This Row],[Stvarno]]","v":{"v":-56,"d":"-56.00 kn"}}]
[null,"Osobna njega","Odjeća",{"v":59,"d":"59.00 kn"},{"v":72,"d":"72.00 kn"},{"$f":"TablicaPotrošnja[[#This Row],[Projicirano]]-TablicaPotrošnja[[#This Row],[Stvarno]]","v":{"v":-13,"d":"-13.00 kn"}}]
[null,"Osobna njega","Čišćenje odjeće",{"v":89,"d":"89.00 kn"},{"v":90,"d":"90.00 kn"},{"$f":"TablicaPotrošnja[[#This Row],[Projicirano]]-TablicaPotrošnja[[#This Row],[Stvarno]]","v":{"v":-1,"d":"-1.00 kn"}}]
[null,"Osobna njega","Teretana",{"v":78,"d":"78.00 kn"},{"v":48,"d":"48.00 kn"},{"$f":"TablicaPotrošnja[[#This Row],[Projicirano]]-TablicaPotrošnja[[#This Row],[Stvarno]]","v":{"v":30,"d":"30.00 kn"}}]
[null,"Osobna njega","Članarine ili naknade",{"v":6,"d":"6.00 kn"},{"v":73,"d":"73.00 kn"},{"$f":"TablicaPotrošnja[[#This Row],[Projicirano]]-TablicaPotrošnja[[#This Row],[Stvarno]]","v":{"v":-67,"d":"-67.00 kn"}}]
[null,"Osobna njega","Ostalo",{"v":80,"d":"80.00 kn"},{"v":66,"d":"66.00 kn"},{"$f":"TablicaPotrošnja[[#This Row],[Projicirano]]-TablicaPotrošnja[[#This Row],[Stvarno]]","v":{"v":14,"d":"14.00 kn"}}]
[null,"Zabava","Video/DVD",{"v":11,"d":"11.00 kn"},{"v":29,"d":"29.00 kn"},{"$f":"TablicaPotrošnja[[#This Row],[Projicirano]]-TablicaPotrošnja[[#This Row],[Stvarno]]","v":{"v":-18,"d":"-18.00 kn"}}]
[null,"Zabava","CD-ovi",{"v":77,"d":"77.00 kn"},{"v":32,"d":"32.00 kn"},{"$f":"TablicaPotrošnja[[#This Row],[Projicirano]]-TablicaPotrošnja[[#This Row],[Stvarno]]","v":{"v":45,"d":"45.00 kn"}}]
[null,"Zabava","Filmovi",{"v":71,"d":"71.00 kn"},{"v":43,"d":"43.00 kn"},{"$f":"TablicaPotrošnja[[#This Row],[Projicirano]]-TablicaPotrošnja[[#This Row],[Stvarno]]","v":{"v":28,"d":"28.00 kn"}}]
[null,"Zabava","Koncerti",{"v":64,"d":"64.00 kn"},{"v":21,"d":"21.00 kn"},{"$f":"TablicaPotrošnja[[#This Row],[Projicirano]]-TablicaPotrošnja[[#This Row],[Stvarno]]","v":{"v":43,"d":"43.00 kn"}}]
[null,"Zabava","Sportska događanja",{"v":47,"d":"47.00 kn"},{"v":57,"d":"57.00 kn"},{"$f":"TablicaPotrošnja[[#This Row],[Projicirano]]-TablicaPotrošnja[[#This Row],[Stvarno]]","v":{"v":-10,"d":"-10.00 kn"}}]
[null,"Zabava","Kazalište",{"v":28,"d":"28.00 kn"},{"v":1,"d":"1.00 kn"},{"$f":"TablicaPotrošnja[[#This Row],[Projicirano]]-TablicaPotrošnja[[#This Row],[Stvarno]]","v":{"v":27,"d":"27.00 kn"}}]
[null,"Zabava","Ostalo",{"v":13,"d":"13.00 kn"},{"v":42,"d":"42.00 kn"},{"$f":"TablicaPotrošnja[[#This Row],[Projicirano]]-TablicaPotrošnja[[#This Row],[Stvarno]]","v":{"v":-29,"d":"-29.00 kn"}}]
[null,"Krediti","Osobno",{"v":65,"d":"65.00 kn"},{"v":6,"d":"6.00 kn"},{"$f":"TablicaPotrošnja[[#This Row],[Projicirano]]-TablicaPotrošnja[[#This Row],[Stvarno]]","v":{"v":59,"d":"59.00 kn"}}]
[null,"Krediti","Studentski kredit",{"v":100,"d":"100.00 kn"},{"v":36,"d":"36.00 kn"},{"$f":"TablicaPotrošnja[[#This Row],[Projicirano]]-TablicaPotrošnja[[#This Row],[Stvarno]]","v":{"v":64,"d":"64.00 kn"}}]
[null,"Krediti","Kreditna kartica",{"v":29,"d":"29.00 kn"},{"v":69,"d":"69.00 kn"},{"$f":"TablicaPotrošnja[[#This Row],[Projicirano]]-TablicaPotrošnja[[#This Row],[Stvarno]]","v":{"v":-40,"d":"-40.00 kn"}}]
[null,"Krediti","Kreditna kartica",{"v":64,"d":"64.00 kn"},{"v":3,"d":"3.00 kn"},{"$f":"TablicaPotrošnja[[#This Row],[Projicirano]]-TablicaPotrošnja[[#This Row],[Stvarno]]","v":{"v":61,"d":"61.00 kn"}}]
[null,"Krediti","Kreditna kartica",{"v":34,"d":"34.00 kn"},{"v":35,"d":"35.00 kn"},{"$f":"TablicaPotrošnja[[#This Row],[Projicirano]]-TablicaPotrošnja[[#This Row],[Stvarno]]","v":{"v":-1,"d":"-1.00 kn"}}]
[null,"Krediti","Ostalo",{"v":38,"d":"38.00 kn"},{"v":52,"d":"52.00 kn"},{"$f":"TablicaPotrošnja[[#This Row],[Projicirano]]-TablicaPotrošnja[[#This Row],[Stvarno]]","v":{"v":-14,"d":"-14.00 kn"}}]
[null,"Porezi","Savezni",{"v":84,"d":"84.00 kn"},{"v":36,"d":"36.00 kn"},{"$f":"TablicaPotrošnja[[#This Row],[Projicirano]]-TablicaPotrošnja[[#This Row],[Stvarno]]","v":{"v":48,"d":"48.00 kn"}}]
[null,"Porezi","Državni",{"v":2,"d":"2.00 kn"},{"v":83,"d":"83.00 kn"},{"$f":"TablicaPotrošnja[[#This Row],[Projicirano]]-TablicaPotrošnja[[#This Row],[Stvarno]]","v":{"v":-81,"d":"-81.00 kn"}}]
[null,"Porezi","Lokalni",{"v":40,"d":"40.00 kn"},{"v":20,"d":"20.00 kn"},{"$f":"TablicaPotrošnja[[#This Row],[Projicirano]]-TablicaPotrošnja[[#This Row],[Stvarno]]","v":{"v":20,"d":"20.00 kn"}}]
[null,"Porezi","Ostalo",{"v":35,"d":"35.00 kn"},{"v":72,"d":"72.00 kn"},{"$f":"TablicaPotrošnja[[#This Row],[Projicirano]]-TablicaPotrošnja[[#This Row],[Stvarno]]","v":{"v":-37,"d":"-37.00 kn"}}]
[null,"Štednja ili ulaganja","Mirovinska štednja",{"v":34,"d":"34.00 kn"},{"v":20,"d":"20.00 kn"},{"$f":"TablicaPotrošnja[[#This Row],[Projicirano]]-TablicaPotrošnja[[#This Row],[Stvarno]]","v":{"v":14,"d":"14.00 kn"}}]
[null,"Štednja ili ulaganja","Investicijski račun",{"v":68,"d":"68.00 kn"},{"v":98,"d":"98.00 kn"},{"$f":"TablicaPotrošnja[[#This Row],[Projicirano]]-TablicaPotrošnja[[#This Row],[Stvarno]]","v":{"v":-30,"d":"-30.00 kn"}}]
[null,"Štednja ili ulaganja","Fakultet",{"v":89,"d":"89.00 kn"},{"v":68,"d":"68.00 kn"},{"$f":"TablicaPotrošnja[[#This Row],[Projicirano]]-TablicaPotrošnja[[#This Row],[Stvarno]]","v":{"v":21,"d":"21.00 kn"}}]
[null,"Štednja ili ulaganja","Ostalo",{"v":82,"d":"82.00 kn"},{"v":26,"d":"26.00 kn"},{"$f":"TablicaPotrošnja[[#This Row],[Projicirano]]-TablicaPotrošnja[[#This Row],[Stvarno]]","v":{"v":56,"d":"56.00 kn"}}]
[null,"Darovi i donacije","Dobrotvorna udruga 1",{"v":41,"d":"41.00 kn"},{"v":85,"d":"85.00 kn"},{"$f":"TablicaPotrošnja[[#This Row],[Projicirano]]-TablicaPotrošnja[[#This Row],[Stvarno]]","v":{"v":-44,"d":"-44.00 kn"}}]
[null,"Darovi i donacije","Dobrotvorna udruga 2",{"v":0,"d":"0.00 kn"},{"v":69,"d":"69.00 kn"},{"$f":"TablicaPotrošnja[[#This Row],[Projicirano]]-TablicaPotrošnja[[#This Row],[Stvarno]]","v":{"v":-69,"d":"-69.00 kn"}}]
[null,"Darovi i donacije","Dobrotvorna udruga 3",{"v":2,"d":"2.00 kn"},{"v":57,"d":"57.00 kn"},{"$f":"TablicaPotrošnja[[#This Row],[Projicirano]]-TablicaPotrošnja[[#This Row],[Stvarno]]","v":{"v":-55,"d":"-55.00 kn"}}]
[null,"Pravni troškovi","Odvjetnik",{"v":7,"d":"7.00 kn"},{"v":98,"d":"98.00 kn"},{"$f":"TablicaPotrošnja[[#This Row],[Projicirano]]-TablicaPotrošnja[[#This Row],[Stvarno]]","v":{"v":-91,"d":"-91.00 kn"}}]
[null,"Pravni troškovi","Alimentacija",{"v":39,"d":"39.00 kn"},{"v":85,"d":"85.00 kn"},{"$f":"TablicaPotrošnja[[#This Row],[Projicirano]]-TablicaPotrošnja[[#This Row],[Stvarno]]","v":{"v":-46,"d":"-46.00 kn"}}]
[null,"Pravni troškovi","Otplate zaloga ili ovrha",{"v":78,"d":"78.00 kn"},{"v":84,"d":"84.00 kn"},{"$f":"TablicaPotrošnja[[#This Row],[Projicirano]]-TablicaPotrošnja[[#This Row],[Stvarno]]","v":{"v":-6,"d":"-6.00 kn"}}]
[null,"Pravni troškovi","Ostalo",{"v":93,"d":"93.00 kn"},{"v":71,"d":"71.00 kn"},{"$f":"TablicaPotrošnja[[#This Row],[Projicirano]]-TablicaPotrošnja[[#This Row],[Stvarno]]","v":{"v":22,"d":"22.00 kn"}}]
[null,"Zbroj",{"$nulls":3},{"$f":"SUBTOTAL(109,TablicaPotrošnja[Razlika])","v":{"v":-75,"d":"-75.00 kn"}}]